bitfinex/quotes_ETHUSD_20251120
["timestamp","ask_amount","ask_price","bid_price","bid_amount"]
[1763657518036,0.4785,2878.0,2876.1,0.133]
[1763657518336,0.4785,2878.0,2876.2,0.405504]
[1763657518537,0.002,2878.2,2876.4,0.405504]
[1763657518846,0.002,2878.2,2876.2,7.81834139]
[1763657518847,0.002,2878.2,2877.4,0.405504]
[1763657519023,0.002,2878.2,2877.6,0.405504]
[1763657520141,0.002,2878.2,2877.5,0.133]
[1763657520342,0.002,2878.2,2877.6,0.405504]
[1763657520510,0.4805,2878.2,2877.5,0.133]
[1763657520712,0.0012,2878.2,2877.5,0.133]
[1763657520911,0.0012,2878.2,2877.6,0.405504]
[1763657521112,0.4797,2878.2,2877.5,0.133]
[1763657521313,0.0012,2878.2,2877.5,0.133]
[1763657521518,0.0012,2878.2,2877.6,0.405504]
[1763657521917,0.0012,2878.2,2877.5,0.133]
[1763657522117,0.0012,2878.2,2877.1,0.133]
[1763657522118,0.4785,2878.1,2877.1,0.133]
[1763657522350,0.4785,2878.1,2876.0,0.4758]
[1763657522560,0.1862,2878.0,2876.1,0.91483414]
[1763657522757,0.4785,2877.9,2876.2,0.03476809]
[1763657522965,0.4785,2877.9,2876.1,1.39063414]
[1763657523120,0.1862,2878.0,2876.1,0.91483414]
[1763657523326,0.0012,2878.2,2876.8,0.90699264]
[1763657523525,0.0012,2878.2,2877.3,1.31249664]
[1763657524145,0.0012,2878.2,2877.7,7.34254139]
[1763657524349,0.0012,2878.2,2877.8,1.92129664]
[1763657524733,0.0012,2878.2,2878.0,0.405504]
[1763657525143,0.4797,2878.2,2876.5,0.4758]
[1763657525399,0.4797,2878.2,2875.9,7.34254139]
[1763657525400,0.1,2877.5,2875.9,7.34254139]
[1763657525670,0.002,2878.0,2876.0,0.132]
[1763657525671,0.1,2877.1,2876.0,0.132]
[1763657526076,0.1,2876.8,2876.0,0.132]
[1763657526275,0.4785,2877.0,2876.0,0.132]
[1763657526633,0.1,2877.2,2876.0,0.132]
[1763657526978,0.1,2876.6,2875.8,0.001]
[1763657527132,1.38549264,2877.6,2875.8,0.001]
[1763657527133,0.1,2876.0,2875.8,0.001]
[1763657527332,0.1,2875.3,2874.4,0.132]
[1763657527762,0.5785,2875.3,2873.7,0.1817]
[1763657527940,0.5785,2875.3,2874.0,0.132]
[1763657528136,0.1,2875.3,2874.1,0.0347935]
[1763657528349,0.4664,2875.3,2874.0,0.132]
[1763657529135,0.4664,2875.3,2872.6,0.0994]
[1763657529487,0.405504,2875.2,2872.7,0.132]
[1763657529631,0.1,2874.0,2872.7,0.132]
[1763657529837,0.405504,2875.0,2872.8,0.74745414]
[1763657530046,0.405504,2875.0,2872.7,0.132]
[1763657530047,0.1,2873.9,2872.7,0.132]
[1763657530870,0.4664,2875.0,2872.8,0.94180188]
[1763657531191,0.4664,2875.0,2872.9,0.90699264]
[1763657531346,0.405504,2874.9,2872.7,0.132]
[1763657531546,0.1,2873.8,2872.8,0.03480924]
[1763657531786,0.1,2873.8,2872.7,0.132]
[1763657531968,0.1,2873.8,2872.8,0.132]
[1763657532695,0.1,2873.8,2871.6,3.48230765]
[1763657532696,0.1961,2872.9,2871.9,0.132]
[1763657532991,0.1,2872.4,2871.9,0.132]
[1763657533288,0.1,2872.4,2871.4,0.001]
[1763657533490,0.1,2872.4,2871.4,0.479]
[1763657533695,1.16705488,2874.8,2871.4,0.479]
[1763657533696,0.1961,2873.8,2871.7,0.90699264]
[1763657533850,0.1,2873.3,2871.8,0.8249534]
[1763657534051,0.1,2873.3,2871.4,0.479]
[1763657534052,0.1,2873.0,2871.4,0.001]
[1763657534358,0.4664,2872.9,2871.4,0.001]
[1763657534747,0.405504,2873.7,2871.4,0.001]
[1763657534748,0.1,2872.7,2871.4,0.001]
[1763657534986,0.4664,2872.8,2871.4,0.001]
[1763657535193,0.1,2871.6,2871.4,0.001]
[1763657535393,0.1,2872.0,2871.4,0.001]
[1763657535549,0.4664,2872.7,2871.4,0.001]
[1763657535878,0.1,2872.2,2871.4,0.001]
[1763657536247,0.4664,2872.4,2871.4,0.001]
[1763657536444,0.1,2872.2,2871.4,0.001]
[1763657536644,0.1961,2871.5,2871.1,0.001]
[1763657536885,0.1,2870.9,2870.8,0.001]
[1763657537245,0.1,2870.1,2869.5,0.132]
[1763657537448,0.1961,2871.5,2869.6,6.23032571]
[1763657537676,0.1,2870.8,2869.7,0.63623257]
[1763657537876,0.1,2870.8,2869.5,0.132]
[1763657538124,0.4664,2871.1,2869.5,0.132]
[1763657538274,0.1,2870.8,2869.6,6.23032571]
[1763657538617,0.4664,2871.1,2869.5,0.132]
[1763657538821,0.1,2870.1,2869.5,0.132]
[1763657539020,0.1,2870.5,2869.5,0.132]
[1763657539184,0.1,2870.5,2869.6,6.63582971]
[1763657539526,0.1961,2871.5,2869.8,0.405504]
[1763657539739,0.1,2871.2,2870.2,0.405504]
[1763657539878,0.1,2871.2,2870.4,0.405504]
[1763657540085,0.1,2871.5,2870.6,6.23032571]
[1763657540280,0.1,2871.5,2870.3,0.132]
[1763657540281,0.1,2871.7,2870.7,0.62651628]
[1763657540480,0.1,2871.0,2870.1,0.405504]
[1763657540695,3.48095021,2872.8,2870.1,0.405504]
[1763657540696,0.4664,2873.4,2871.0,1.31249664]
[1763657540941,0.4664,2873.7,2871.4,6.58032571]
[1763657541098,0.4664,2873.7,2871.5,1.97052921]
[1763657541309,0.4664,2873.7,2872.0,0.405504]
[1763657541511,0.4664,2873.7,2871.9,6.23032571]
[1763657541512,0.4664,2873.7,2872.2,0.405504]
[1763657541943,0.2461,2875.1,2872.2,0.405504]
[1763657541944,0.4664,2874.2,2872.5,1.31249664]
[1763657542153,0.4664,2874.2,2872.7,0.405504]
[1763657542298,0.4664,2874.8,2873.4,6.23032571]
[1763657542643,0.4664,2875.5,2874.0,0.405504]
[1763657542800,0.1862,2876.1,2874.5,0.405504]
[1763657542801,0.4664,2875.9,2874.5,0.405504]
[1763657542997,0.4664,2875.9,2874.7,0.405504]
[1763657543237,0.4664,2875.9,2874.5,0.405504]
[1763657543441,0.4664,2876.5,2874.7,6.23032571]
[1763657543647,0.4664,2876.5,2874.6,0.405504]
[1763657543833,0.4664,2876.5,2873.5,3.48003163]
[1763657543834,0.4664,2876.5,2873.6,0.478]
[1763657544032,0.4664,2876.5,2873.8,1.31249664]
[1763657544033,0.90699264,2876.4,2873.8,1.31249664]
[1763657544205,0.405504,2876.2,2873.8,0.405504]
[1763657544551,0.405504,2876.2,2873.7,0.132]
[1763657544552,0.405504,2875.7,2873.7,0.132]
[1763657544732,0.405504,2875.7,2873.0,0.478]
[1763657544733,0.405504,2875.7,2872.0,0.001]
[1763657544916,0.4664,2875.6,2872.7,6.23032571]
[1763657545117,0.4664,2875.6,2872.8,0.90699264]
[1763657545305,0.4664,2875.6,2872.9,0.132]
[1763657545505,0.405504,2875.5,2872.9,0.132]
[1763657545818,0.405504,2875.3,2872.9,0.132]
[1763657546018,0.405504,2875.1,2872.2,0.132]
[1763657546326,0.405504,2874.8,2872.2,0.132]
[1763657546540,0.405504,2874.4,2872.2,0.132]
[1763657546740,0.405504,2874.4,2872.0,0.001]
[1763657549168,0.405504,2873.6,2872.0,0.001]
[1763657549381,0.405504,2873.6,2870.6,0.478]
[1763657549382,0.1961,2872.1,2868.7,0.479]
[1763657549531,0.1961,2872.1,2869.5,6.23032571]
[1763657549532,0.405504,2872.0,2869.5,6.23032571]
[1763657549728,0.88848726,2874.1,2870.4,1.31019408]
[1763657550075,1.96735333,2874.5,2869.7,3.48468481]
[1763657550076,0.4664,2873.6,2869.7,3.48468481]
[1763657550264,0.4664,2873.6,2870.4,6.23032571]
[1763657550471,0.405504,2873.5,2870.5,2.00802521]
[1763657550632,0.405504,2873.5,2870.5,0.62303257]
[1763657550633,0.455504,2873.5,2870.5,0.62303257]
[1763657550833,17.3961525,2874.2,2870.4,0.135]
[1763657550834,0.405504,2873.1,2870.4,0.135]
[1763657551028,0.4664,2873.0,2870.4,6.36532571]
[1763657551256,0.405504,2872.9,2870.5,1.38499264]
[1763657551569,0.455504,2872.7,2869.2,0.478]
[1763657551769,1.31249664,2872.5,2869.4,6.84332571]
[1763657552066,1.31249664,2872.5,2869.5,1.59142521]
[1763657552265,0.405504,2872.3,2869.5,1.59142521]
[1763657552456,0.405504,2872.1,2869.5,0.81943257]
[1763657552654,0.405504,2872.1,2869.6,0.03484806]
[1763657552831,0.405504,2871.9,2869.4,0.135]
[1763657553165,0.405504,2871.9,2869.2,0.478]
[1763657553364,0.405504,2871.7,2869.4,0.135]
[1763657553665,0.405504,2871.5,2869.4,0.135]
[1763657553852,1.31249664,2871.3,2869.5,0.135]
[1763657554358,0.405504,2871.1,2869.3,0.001]
[1763657554543,0.54668108,2870.9,2869.3,0.001]
[1763657554742,0.54668108,2870.9,2869.3,0.4793]
[1763657554969,0.54668108,2870.9,2869.6,1.31249664]
[1763657555169,0.54668108,2870.9,2869.3,0.4793]
[1763657555170,0.4584,2870.8,2869.3,0.001]
[1763657555328,0.4584,2870.8,2869.4,0.135]
[1763657555529,0.405504,2870.7,2869.3,0.001]
[1763657555731,0.405504,2870.5,2869.3,0.001]
[1763657555929,1.31249664,2870.5,2869.3,0.001]
[1763657556167,0.4584,2870.4,2869.3,0.001]
[1763657556427,0.4584,2870.4,2868.7,0.001]
[1763657556428,0.1961,2869.4,2868.7,0.001]
[1763657556699,0.405504,2869.3,2868.7,0.001]
[1763657556896,0.863904,2869.3,2867.1,1.24423976]
[1763657557098,0.4584,2869.2,2867.2,1.24423976]
[1763657557255,0.4584,2869.2,2867.3,0.21512324]
[1763657557461,0.405504,2869.1,2867.3,0.21512324]
[1763657557700,0.6545,2870.7,2868.9,6.23032571]
[1763657557915,0.4584,2871.4,2869.5,0.405504]
[1763657558074,0.4584,2871.4,2869.7,0.405504]
[1763657558274,0.4584,2871.4,2869.9,0.405504]
[1763657558591,0.1986,2871.2,2870.1,0.405504]
[1763657558770,0.1986,2871.2,2870.1,0.135]
[1763657559166,0.1986,2871.2,2869.5,0.4519]
[1763657559500,0.1986,2871.2,2869.7,6.23032571]
[1763657559708,0.6528,2871.2,2869.8,1.08258697]
[1763657559872,0.6528,2871.2,2869.4,0.857404]
[1763657560104,0.6528,2871.2,2869.5,0.135]
[1763657560387,0.6528,2871.2,2869.7,6.63582971]
[1763657560388,0.4542,2871.2,2869.7,6.63582971]
[1763657560588,0.4542,2871.8,2869.9,0.405504]
[1763657561164,0.1986,2871.2,2869.9,0.405504]
[1763657561377,1.10559264,2871.2,2870.0,0.134]
[1763657561710,1.10559264,2871.2,2870.1,0.134]
[1763657561711,1.00088108,2870.9,2870.1,0.134]
[1763657561994,1.00288108,2870.9,2870.0,0.134]
[1763657562402,0.4542,2870.8,2869.7,0.134]
[1763657562909,0.54868108,2870.9,2869.7,0.134]
[1763657563197,0.54868108,2870.9,2869.7,0.405504]
[1763657563508,1.00288108,2870.9,2869.0,0.90699264]
[1763657563664,1.36119264,2870.8,2868.9,6.86352571]
[1763657563866,0.4542,2870.8,2869.0,0.4519]
[1763657564065,0.4542,2870.8,2869.0,1.49289264]
[1763657564400,1.36119264,2870.8,2868.9,0.1813]
[1763657564573,1.36119264,2870.8,2868.9,0.134]
[1763657564574,0.405504,2870.7,2868.9,0.134]
[1763657564774,0.859704,2870.7,2868.9,0.134]
[1763657564989,0.54679252,2870.4,2868.6,6.23132571]
[1763657565217,0.54679252,2870.4,2868.7,0.62313257]
[1763657565365,0.4542,2870.3,2868.8,0.134]
[1763657565566,0.4542,2870.3,2868.6,0.001]
[1763657565778,0.4542,2870.3,2868.7,0.134]
[1763657565976,0.4542,2870.3,2868.6,0.001]
[1763657565977,0.90699264,2870.2,2868.6,0.001]
[1763657566180,0.405504,2870.1,2868.6,0.001]
[1763657566394,0.54679252,2870.4,2868.7,0.4519]
[1763657566395,1.43527978,2870.4,2868.7,0.4519]
[1763657566579,0.54679252,2870.4,2869.2,0.90699264]
[1763657566778,0.4542,2870.3,2869.3,0.134]
[1763657566991,0.4542,2870.3,2868.9,0.405504]
[1763657567192,0.4542,2870.3,2869.0,0.134]
[1763657567376,1.36119264,2870.3,2868.8,0.39389211]
[1763657567702,0.4542,2870.2,2868.9,0.539504]
[1763657567865,0.4542,2870.2,2868.9,0.134]
[1763657568312,0.90699264,2870.0,2868.9,0.134]
[1763657568608,0.405504,2869.9,2868.6,0.001]
[1763657568765,0.1986,2868.7,2868.6,0.001]
[1763657568964,0.1986,2868.7,2868.4,0.001]
[1763657569607,0.1986,2869.1,2868.4,0.001]
[1763657570088,4.39252766,2869.0,2868.4,0.001]
[1763657570428,0.405504,2868.9,2868.1,0.001]
[1763657570565,0.405504,2868.6,2866.0,0.4519]
[1763657570769,0.405504,2868.6,2866.5,0.134]
[1763657570770,0.1,2867.0,2866.5,0.134]
[1763657571014,0.405504,2868.6,2866.6,0.5567]
[1763657571015,0.5542,2868.0,2866.6,0.5567]
[1763657571217,0.4542,2868.0,2866.6,0.5567]
[1763657571410,0.4542,2868.7,2866.8,0.90699264]
[1763657571703,0.4542,2868.7,2867.0,0.405504]
[1763657571866,0.1,2867.8,2867.0,0.405504]
[1763657572065,0.1,2867.8,2866.9,0.84773184]
[1763657572066,0.1,2868.3,2867.3,0.405504]
[1763657572281,0.1,2868.3,2865.8,0.154]
[1763657572468,0.4542,2868.2,2866.6,0.2388]
[1763657572797,0.1,2867.1,2866.2,6.23032571]
[1763657572998,0.1,2867.1,2866.7,0.134]
[1763657573501,0.1,2867.1,2865.8,0.154]
[1763657573704,0.05,2868.9,2865.8,0.154]
[1763657573705,0.1,2867.5,2866.3,0.90699264]
[1763657573865,0.1,2867.2,2866.3,0.405504]
[1763657574068,0.1,2867.2,2866.4,0.134]
[1763657574303,0.1,2866.9,2866.5,0.405504]
[1763657574624,0.4542,2867.8,2866.5,0.4519]
[1763657574625,0.1,2867.1,2866.5,0.4519]
[1763657574767,0.1,2868.3,2867.0,0.405504]
[1763657575195,0.54711554,2868.0,2867.2,0.405504]
[1763657575400,0.54711554,2868.0,2867.4,0.405504]
[1763657575872,0.54711554,2868.0,2867.1,0.4519]
[1763657575873,0.1,2867.9,2867.5,0.134]
[1763657576068,0.1,2867.9,2866.8,0.134]
[1763657576506,0.1,2867.3,2866.9,0.134]
[1763657576802,0.6528,2867.9,2866.9,0.134]
[1763657577008,0.1,2867.6,2866.9,0.134]
[1763657577212,0.54711554,2868.0,2867.0,0.405504]
[1763657577500,0.1,2867.7,2867.0,0.405504]
[1763657578405,0.54711554,2868.0,2867.0,0.405504]
[1763657578568,0.1,2867.5,2867.0,0.405504]
[1763657578771,0.1,2867.6,2866.7,0.405504]
[1763657578978,0.1,2867.9,2866.9,0.405504]
[1763657579179,0.54711554,2868.0,2867.0,0.134]
[1763657579388,0.1,2867.8,2867.0,0.405504]
[1763657579711,0.54711554,2868.0,2866.7,6.23032571]
[1763657579712,0.1,2867.6,2866.8,0.001]
[1763657579911,0.1,2867.6,2867.0,0.405504]
[1763657580315,0.1,2867.4,2867.0,0.405504]
[1763657580627,0.1,2867.6,2867.1,0.134]
[1763657580790,0.1,2867.6,2866.8,0.001]
[1763657581113,0.4542,2867.7,2866.8,0.001]
[1763657581423,0.54711554,2868.0,2866.9,0.134]
[1763657581629,0.54711554,2868.0,2866.8,0.001]
[1763657581630,0.1,2867.7,2866.8,0.001]
[1763657581834,0.1986,2866.9,2866.8,0.001]
[1763657582128,0.2986,2866.9,2866.8,0.001]
[1763657582288,0.7528,2866.9,2866.8,0.001]
[1763657583000,0.1,2866.9,2866.8,0.001]
[1763657583696,0.1,2867.3,2866.8,0.001]
[1763657583897,0.4542,2867.9,2866.8,0.134]
[1763657584236,0.002,2868.7,2867.9,0.405504]
[1763657584537,0.002,2868.7,2867.8,0.1048]
[1763657584538,0.002,2868.7,2868.4,1.31249664]
[1763657584836,0.002,2870.9,2869.0,0.405504]
[1763657584837,0.1,2870.4,2869.0,0.405504]
[1763657584994,0.54877309,2870.9,2869.6,0.405504]
[1763657585188,0.54877309,2870.9,2869.1,0.133]
[1763657585189,0.002,2870.9,2870.3,0.405504]
[1763657585393,0.002,2870.9,2870.5,0.405504]
[1763657585589,0.002,2870.9,2870.8,1.31249664]
[1763657585831,0.002,2871.5,2871.2,0.405504]
[1763657586042,0.002,2871.5,2871.2,0.857404]
[1763657586219,0.54642416,2871.8,2871.3,1.31249664]
[1763657586447,0.4542,2874.0,2871.6,6.23032571]
[1763657586747,0.54624953,2872.8,2871.8,0.405504]
[1763657586928,0.1,2872.8,2872.0,0.405504]
[1763657587238,0.1986,2874.2,2871.5,0.405504]
[1763657587239,0.54622145,2873.5,2872.3,0.405504]
[1763657587426,1.16705488,2875.0,2872.3,0.405504]
[1763657587427,0.4542,2874.5,2872.8,0.405504]
[1763657587658,0.88848726,2875.4,2873.3,1.31249664]
[1763657587659,0.1,2874.3,2873.3,1.31249664]
[1763657587816,0.4542,2875.4,2873.8,0.405504]
[1763657587817,0.54598547,2874.8,2873.8,0.405504]
[1763657588019,0.54598547,2874.8,2873.8,1.31249664]
[1763657588020,0.1,2874.7,2873.8,1.31249664]
[1763657588341,4.64314399,2876.8,2873.8,1.31249664]
[1763657588342,0.1986,2876.1,2874.0,0.405504]
[1763657588501,0.1986,2876.1,2873.9,1.20618224]
[1763657588502,0.1,2875.2,2874.2,0.405504]
[1763657588703,0.64576404,2875.5,2874.4,0.405504]
[1763657588945,0.64576404,2875.5,2874.6,0.405504]
[1763657589133,0.1,2874.8,2874.6,0.405504]
[1763657589453,0.54576404,2875.5,2874.7,0.133]
[1763657589454,0.1,2875.1,2874.7,0.133]
[1763657589661,0.1,2875.1,2874.8,0.405504]
[1763657589953,0.1,2875.3,2874.8,0.405504]
[1763657590105,0.64572866,2875.3,2874.4,0.90699264]
[1763657590310,0.4677,2875.2,2873.3,0.4868]
[1763657590553,0.1,2875.0,2873.6,0.90699264]
[1763657590755,0.54572866,2875.3,2874.1,0.405504]
[1763657590937,0.64572866,2875.3,2874.3,0.405504]
[1763657591250,0.1986,2876.1,2874.6,0.405504]
[1763657591550,0.54573152,2875.1,2873.3,0.4868]
[1763657591707,0.1956,2874.4,2873.4,0.133]
[1763657591909,0.1,2873.2,2871.9,0.4868]
[1763657592250,0.0992,2873.1,2872.0,6.36332571]
[1763657592555,0.0992,2873.1,2872.0,0.133]
[1763657592710,0.0992,2873.1,2871.8,0.4868]
[1763657592910,0.0992,2873.1,2871.9,0.4868]
[1763657593112,0.4677,2873.3,2871.3,0.4868]
[1763657593435,0.0992,2873.0,2871.7,6.23032571]
[1763657593645,0.0992,2873.0,2871.7,6.85335828]
[1763657594044,0.0992,2873.0,2871.8,0.133]
[1763657594246,0.0992,2873.0,2871.9,0.133]
[1763657595040,0.4677,2873.2,2872.3,0.405504]
[1763657595246,0.0992,2872.8,2872.1,0.133]
[1763657595495,0.0992,2872.8,2871.4,0.4868]
[1763657595796,0.0992,2872.4,2871.5,0.133]
[1763657595992,0.6633,2873.4,2871.5,0.133]
[1763657595993,0.0992,2872.6,2871.6,0.405504]
[1763657596150,0.0992,2872.6,2871.6,6.63582971]
[1763657596344,0.0992,2872.6,2871.6,6.23032571]
[1763657596585,0.0992,2872.0,2871.7,0.133]
[1763657596757,0.0992,2872.3,2871.7,0.133]
[1763657597160,0.4677,2872.2,2870.5,0.15]
[1763657597360,0.0992,2871.4,2870.6,0.133]
[1763657597564,0.4677,2872.6,2870.6,0.133]
[1763657597888,0.4677,2872.6,2870.7,0.4868]
[1763657597889,0.0992,2871.7,2870.7,0.4868]
[1763657598246,0.0992,2871.7,2870.6,0.133]
[1763657598489,0.0992,2871.7,2870.0,0.4868]
[1763657598645,0.0992,2871.2,2869.5,0.4868]
[1763657598851,0.0992,2870.7,2870.5,0.001]
[1763657599049,0.0992,2871.5,2870.7,0.405504]
[1763657599453,0.0992,2871.5,2870.8,0.133]
[1763657599679,0.90699264,2872.3,2870.8,0.133]
[1763657599882,0.0992,2871.3,2870.9,0.405504]
[1763657600086,0.0992,2871.3,2871.0,0.133]
[1763657600391,0.4677,2871.2,2870.5,0.001]
[1763657600593,3.48206678,2871.9,2870.6,0.133]
[1763657600594,0.0992,2871.0,2870.6,0.133]
[1763657600886,0.0992,2870.8,2870.6,0.133]
[1763657601400,0.0992,2870.8,2870.7,0.133]
[1763657601594,0.0992,2871.4,2870.8,0.405504]
[1763657601907,0.0992,2871.4,2870.7,0.133]
[1763657602114,0.0992,2871.4,2870.6,0.405504]
[1763657602320,3.67712318,2872.4,2870.5,0.001]
[1763657602321,0.0992,2870.9,2870.5,0.001]
[1763657602459,0.0992,2870.9,2870.6,0.132]
[1763657602803,0.0992,2870.6,2870.5,0.001]
[1763657603163,0.54645425,2871.3,2870.5,0.001]
[1763657603359,0.54645425,2871.3,2870.5,0.406504]
[1763657603360,0.0992,2871.2,2870.5,0.406504]
[1763657603599,0.0992,2870.6,2870.5,0.406504]
[1763657603770,0.0992,2870.8,2870.6,0.132]
[1763657604275,0.0992,2870.8,2870.7,0.132]
[1763657604905,0.54645425,2871.3,2870.8,0.405504]
[1763657605235,0.0992,2871.7,2871.0,0.405504]
[1763657605391,0.64557196,2871.7,2871.1,0.132]
[1763657605588,4.16160533,2874.0,2871.1,0.132]
[1763657605589,0.0992,2872.3,2871.4,1.31249664]
[1763657605787,0.54621141,2873.2,2872.1,0.405504]
[1763657605989,0.0992,2872.8,2872.1,0.405504]
[1763657606303,0.0992,2872.9,2872.3,0.405504]
[1763657606509,0.54621141,2873.2,2871.0,0.86179049]
[1763657606510,0.0992,2872.5,2872.4,0.537504]
[1763657606715,0.54621141,2873.2,2872.4,0.132]
[1763657606916,0.0992,2873.1,2872.4,0.132]
[1763657607209,0.0992,2873.0,2872.2,0.405504]
[1763657607413,0.54621141,2873.2,2872.3,0.132]
[1763657607612,0.54621141,2873.2,2871.0,1.34859049]
[1763657607613,0.0992,2872.4,2871.0,1.34859049]
[1763657607780,1.01391141,2873.2,2871.2,7.95903688]
[1763657607976,0.0992,2872.6,2871.3,1.71789633]
[1763657608206,0.4677,2873.1,2871.3,1.71789633]
[1763657608207,0.4677,2873.1,2871.4,0.132]
[1763657608410,0.0992,2872.1,2871.4,0.132]
[1763657608718,0.0992,2872.2,2871.4,0.132]
[1763657608915,0.0992,2872.2,2871.5,0.927129]
[1763657609129,0.6633,2872.4,2870.7,7.79220824]
[1763657609329,0.0992,2871.7,2871.6,0.132]
[1763657609500,0.1995,2872.8,2871.6,0.132]
[1763657609826,0.0992,2872.0,2871.7,0.132]
[1763657610125,0.0992,2872.0,2871.2,0.15]
[1763657610126,0.0992,2872.0,2871.8,0.132]
[1763657610324,0.0992,2872.0,2871.2,0.15]
[1763657610487,0.0992,2872.0,2870.5,7.30640824]
[1763657610687,0.1995,2872.8,2870.5,7.30640824]
[1763657610688,0.0992,2871.5,2870.6,2.27346346]
[1763657610991,0.4595,2872.7,2870.6,1.23447082]
[1763657611207,0.4595,2872.7,2870.7,0.132]
[1763657611208,0.0992,2871.7,2870.7,0.132]
[1763657611414,0.0992,2871.7,2870.6,0.4857]
[1763657611725,0.1995,2872.8,2870.6,0.4857]
[1763657611726,0.0992,2871.3,2870.6,0.4857]
[1763657611929,0.0992,2871.8,2870.7,0.132]
[1763657612133,0.0992,2871.8,2870.8,0.405504]
[1763657612288,0.4595,2872.7,2870.5,0.001]
[1763657612289,0.4595,2871.7,2870.5,0.001]
[1763657612491,0.0992,2871.6,2870.6,0.6177]
[1763657612697,1.10649264,2872.8,2870.5,0.90799264]
[1763657612698,0.0992,2871.3,2870.5,0.90799264]
[1763657612931,0.4595,2871.9,2870.7,0.132]
[1763657613094,0.4595,2871.9,2870.5,0.001]
[1763657613290,0.0992,2870.9,2870.5,0.001]
[1763657613489,0.0992,2870.9,2870.7,0.405504]
[1763657613689,0.4595,2872.0,2870.8,0.132]
[1763657613891,0.4595,2872.0,2870.5,0.001]
[1763657614214,0.4595,2872.0,2870.6,0.132]
[1763657614537,0.0992,2870.9,2870.6,0.132]
[1763657614689,0.4595,2872.0,2870.6,0.132]
[1763657614889,0.4595,2872.0,2870.5,0.001]
[1763657614890,0.4595,2872.0,2870.7,0.537504]
[1763657615215,0.0992,2870.8,2870.5,0.001]
[1763657615413,0.0992,2870.8,2870.6,0.132]
[1763657615616,0.0992,2871.1,2870.6,0.132]
[1763657615801,0.0992,2870.6,2870.5,0.001]
[1763657616633,0.5587,2870.6,2870.5,0.001]
[1763657617132,0.0992,2870.6,2870.5,0.001]
[1763657617430,0.64578302,2871.0,2870.5,0.001]
[1763657617734,0.0992,2870.7,2870.5,0.001]
[1763657618235,0.90699264,2870.5,2870.0,0.001]
[1763657618408,0.0992,2870.1,2870.0,0.001]
[1763657618828,0.5732,2870.1,2870.0,0.001]
[1763657620301,0.90699264,2870.0,2867.5,0.4767]
[1763657620559,0.0992,2868.4,2867.5,0.4767]
[1763657620761,0.0992,2868.0,2867.9,0.131]
[1763657620912,0.405504,2869.8,2867.9,0.131]
[1763657620913,0.0992,2868.1,2867.9,0.131]
[1763657621113,0.405504,2869.8,2867.3,0.1028]
[1763657621114,0.405504,2869.6,2867.3,0.1028]
[1763657621416,0.0992,2867.5,2867.4,0.131]
[1763657621639,0.474,2869.5,2867.4,0.2338]
[1763657621855,0.0992,2868.4,2867.5,0.4767]
[1763657622055,0.0992,2867.9,2867.6,0.131]
[1763657622215,1.16705488,2869.8,2867.7,7.30540824]
[1763657622216,0.0992,2868.6,2867.7,7.30540824]
[1763657622420,0.0992,2868.7,2867.9,0.405504]
[1763657622614,0.0992,2868.7,2868.1,0.405504]
[1763657623267,1.09099264,2869.9,2867.4,0.5795]
[1763657623268,0.0992,2868.4,2867.4,0.5795]
[1763657623558,0.0992,2868.4,2867.5,0.405504]
[1763657623768,0.0992,2868.1,2867.4,0.5795]
[1763657623924,0.0992,2867.8,2867.5,0.131]
[1763657624140,0.184,2868.5,2867.6,0.131]
[1763657624141,0.0992,2867.7,2867.6,0.131]
[1763657624490,0.0992,2868.0,2867.6,0.131]
[1763657624638,0.474,2869.2,2867.7,0.405504]
[1763657624840,0.0992,2868.7,2867.7,0.405504]
[1763657625080,0.0992,2868.7,2867.6,1.51469264]
[1763657625081,0.0992,2868.9,2867.9,0.405504]
[1763657625314,0.0992,2868.9,2868.1,0.405504]
[1763657625492,0.0992,2868.9,2868.0,7.30540824]
[1763657625493,0.474,2869.6,2867.9,0.405504]
[1763657625784,0.0992,2868.7,2868.3,0.405504]
[1763657625938,0.0992,2868.6,2868.3,0.405504]
[1763657626352,0.0992,2868.6,2868.5,0.405504]
[1763657626583,0.54691495,2868.8,2868.5,0.405504]
[1763657626784,0.0992,2868.8,2868.5,0.405504]
[1763657627142,0.0992,2868.8,2868.1,0.405504]
[1763657627485,0.0992,2868.8,2868.3,0.405504]
[1763657627852,0.0992,2868.8,2868.3,0.882204]
[1763657628064,0.54689482,2869.1,2868.3,0.882204]
[1763657628065,0.0992,2869.0,2868.3,0.882204]
[1763657628378,0.0992,2869.0,2868.2,0.131]
[1763657628379,0.0992,2868.7,2868.5,0.405504]
[1763657628584,0.0992,2869.0,2868.5,0.405504]
[1763657628886,0.0992,2869.0,2868.7,0.405504]
[1763657629101,0.0992,2869.3,2868.7,0.405504]
[1763657629302,0.184,2870.2,2868.7,0.882204]
[1763657629303,0.54688461,2869.2,2868.7,0.882204]
[1763657629459,1.08798726,2871.2,2868.9,0.405504]
[1763657629460,0.0992,2869.7,2868.9,0.405504]
[1763657629797,0.54676736,2869.7,2869.1,1.31249664]